bitfinex-derivatives/quotes_BTCF0:USTF0_20250313
["timestamp","ask_amount","ask_price","bid_price","bid_amount"]
[1741878173293,0.03213738,82017.0,82016.0,0.21836511]
[1741878173594,0.16589741,82017.0,82016.0,0.21836511]
[1741878173792,0.16589741,82017.0,82016.0,0.34031441]
[1741878174092,0.16576626,82017.0,82016.0,0.34031441]
[1741878174295,0.16576626,82017.0,82016.0,0.21836511]
[1741878174600,0.39066626,82017.0,82016.0,0.21836511]
[1741878175791,0.26871846,82017.0,82011.0,0.236054]
[1741878175988,0.01181223,82017.0,82016.0,0.1219493]
[1741878176184,0.02415567,82017.0,82016.0,0.1219493]
[1741878176697,0.14610347,82017.0,82016.0,0.1219493]
[1741878176899,0.10869074,82021.0,82020.0,0.1219434]
[1741878177083,0.12098517,82021.0,82020.0,0.1219434]
[1741878177285,0.1219478,82017.0,82016.0,0.1141]
[1741878177596,0.13424015,82017.0,82016.0,0.1141]
[1741878177893,0.13424015,82017.0,82016.0,0.2360493]
[1741878178094,0.01229235,82017.0,82016.0,0.2360493]
[1741878178299,0.13424015,82017.0,82016.0,0.2360493]
[1741878178799,0.01229235,82017.0,82016.0,0.2360493]
[1741878179095,0.10869074,82021.0,82020.0,0.1219434]
[1741878179497,0.10869074,82021.0,82020.0,0.2621434]
[1741878179797,0.03759454,82021.0,82020.0,0.8415434]
[1741878180093,0.14492099,82025.0,82024.0,0.1219374]
[1741878180298,0.21738149,82034.0,82024.0,0.5613374]
[1741878180495,0.11900912,82046.0,82045.0,0.1219062]
[1741878180793,0.24091382,82046.0,82045.0,0.1219062]
[1741878181099,0.24091382,82046.0,82043.0,0.2015539]
[1741878181100,0.21654568,82046.0,82044.0,0.2347062]
[1741878181292,0.1219137,82041.0,82040.0,0.1219124]
[1741878181487,0.01994229,82041.0,82037.0,0.00018284]
[1741878181700,0.1219166,82038.0,82037.0,4e-08]
[1741878181999,0.14185889,82038.0,82037.0,4e-08]
[1741878182192,0.47395889,82038.0,82037.0,4e-08]
[1741878182383,0.62395889,82038.0,82037.0,4e-08]
[1741878182582,0.50204229,82038.0,82006.0,0.1128]
[1741878182782,0.1829387,82012.0,82011.0,0.1829346]
[1741878183384,0.1829387,82012.0,82011.0,0.0609778]
[1741878183585,0.1219597,82009.0,82008.0,0.00013727]
[1741878183789,0.14140988,82009.0,82008.0,0.00013727]
[1741878184293,0.15333132,82009.0,82008.0,0.00013727]
[1741878184497,0.1219672,82004.0,82003.0,0.00018284]
[1741878184803,0.14141738,82004.0,82003.0,0.00018284]
[1741878184988,0.15333882,82004.0,82003.0,0.00018284]
[1741878185184,0.15333882,82004.0,82003.0,0.12215154]
[1741878185387,0.26373882,82004.0,82003.0,0.12215154]
[1741878185597,0.01192144,82004.0,82003.0,0.12215154]
[1741878185988,0.13388864,82004.0,82003.0,0.12215154]
[1741878186185,0.13388864,82004.0,82003.0,0.00018284]
[1741878186387,0.15305196,82004.0,82003.0,0.23025154]
[1741878186590,0.15304665,82004.0,82003.0,0.23025154]
[1741878186805,0.37504665,82004.0,82003.0,0.10828284]
[1741878187099,0.37504665,82004.0,82003.0,0.00018284]
[1741878187701,0.38934929,82004.0,82003.0,0.00018284]
[1741878188293,0.52970929,82004.0,82003.0,0.00018284]
[1741878188494,0.52985913,82004.0,82003.0,0.00018284]
[1741878190306,0.03122929,82004.0,82003.0,0.12215154]
[1741878190698,0.01192144,82004.0,82003.0,0.24770186]
[1741878191007,0.02396626,82004.0,82003.0,0.24770186]
[1741878191195,0.00897629,82019.0,82003.0,0.12573316]
[1741878191395,0.13092119,82019.0,82018.0,0.1219464]
[1741878191595,0.14221162,82019.0,82018.0,0.1219464]
[1741878191800,0.02821162,82019.0,82018.0,0.1219464]
[1741878191999,0.1083,82025.0,82018.0,0.1219464]
[1741878192203,0.1083,82025.0,82019.0,0.2335449]
[1741878192499,0.01892381,82024.0,82019.0,0.2335449]
[1741878192699,0.0609687,82024.0,82019.0,0.2335449]
[1741878192998,0.114,82028.0,82019.0,0.2335449]
[1741878193201,0.12212624,82020.0,82019.0,0.24756286]
[1741878193403,0.14103063,82020.0,82019.0,0.1116]
[1741878193598,0.14103063,82020.0,82004.0,0.5331]
[1741878193599,0.1219657,82005.0,82004.0,0.235664]
[1741878193801,0.1219657,82005.0,82003.0,0.00018284]
[1741878193802,0.01890692,82005.0,82003.0,0.00018284]
[1741878194003,0.0609827,82006.0,82003.0,0.00018284]
[1741878194004,0.36847412,82004.0,82003.0,0.00018284]
[1741878194300,0.36867976,82004.0,82003.0,0.00018284]
[1741878194695,0.38268008,82004.0,82003.0,0.00018284]
[1741878195489,0.1829945,81986.0,81985.0,0.121994]
[1741878195694,0.26071288,82004.0,81990.0,0.0609924]
[1741878195695,0.1219892,81991.0,81990.0,0.0609924]
[1741878195900,0.1410132,81991.0,81990.0,0.0609924]
[1741878196306,0.121988,81990.0,81989.0,0.1085]
[1741878196606,0.141012,81990.0,81989.0,0.1085]
[1741878196801,0.363912,81990.0,81989.0,0.1085]
[1741878197303,0.363912,81990.0,81989.0,0.2304895]
[1741878197603,0.363912,81990.0,81989.0,0.1085]
[1741878197798,0.363912,81990.0,81989.0,0.2304895]
[1741878197997,0.363912,81990.0,81989.0,0.1085]
[1741878198197,0.241924,81990.0,81981.0,0.00018296]
[1741878198397,0.182999,81985.0,81984.0,0.0609962]
[1741878198602,0.202023,81985.0,81984.0,0.0609962]
[1741878198792,0.2971231,81985.0,81984.0,0.0609962]
[1741878200800,0.236124,81985.0,81984.0,0.0609962]
[1741878201007,0.019024,81985.0,81984.0,0.0609962]
[1741878201706,0.1410194,81985.0,81984.0,0.0609962]
[1741878201896,0.1219969,81984.0,81983.0,0.2269984]
[1741878202094,0.35480162,81984.0,81983.0,0.105]
[1741878202293,0.35480162,81984.0,81983.0,0.2269984]
[1741878203200,0.36676659,81984.0,81983.0,0.2269984]
[1741878203807,0.36700292,81984.0,81983.0,0.2269984]
[1741878204105,0.37866964,81984.0,81983.0,0.2269984]
[1741878205107,0.37866964,81984.0,81983.0,0.105]
[1741878205297,0.1219999,81982.0,81981.0,0.00018296]
[1741878205500,0.15310592,81982.0,81981.0,0.12218436]
[1741878206211,0.16477264,81982.0,81981.0,0.22848436]
[1741878206904,0.04377274,81982.0,81981.0,0.22848436]
[1741878207109,0.02463057,81982.0,81981.0,0.22848436]
[1741878207309,0.229,81997.0,81996.0,0.1219791]
[1741878207500,0.36999312,81997.0,81996.0,0.1219791]
[1741878207701,0.24801552,81997.0,81996.0,0.1219791]
[1741878207903,0.36999312,81997.0,81996.0,0.1219791]
[1741878208106,0.3509776,81997.0,81996.0,0.1219791]
[1741878209011,0.00018296,81998.0,81997.0,0.1219776]
[1741878209204,6e-08,81998.0,81997.0,0.1219776]
[1741878209404,6e-08,81998.0,81997.0,0.1419776]
[1741878209599,7e-08,82014.0,82013.0,0.1219538]
[1741878209808,0.21727631,82019.0,82018.0,0.1219464]
[1741878210423,0.33922121,82019.0,82018.0,0.1219464]
[1741878210815,0.33922121,82019.0,82018.0,0.1361186]
[1741878211111,0.1219508,82015.0,82014.0,0.3321506]
[1741878211315,0.21727631,82019.0,82017.0,0.1219478]
[1741878211509,0.21727631,82019.0,82018.0,0.2259464]
[1741878211813,0.33922121,82019.0,82018.0,0.24036529]
[1741878212114,0.21727631,82019.0,82018.0,0.24036529]
[1741878212309,0.001,82019.0,82018.0,0.24036529]
[1741878212812,0.001,82019.0,82018.0,0.11841889]
[1741878213008,0.001,82019.0,82018.0,0.24036529]
[1741878213214,0.1229449,82019.0,82018.0,0.24036529]
[1741878213714,0.001,82019.0,82018.0,0.24036529]
[1741878215408,0.222,82026.0,82025.0,0.1219359]
[1741878215610,0.00018296,82027.0,82025.0,0.1219359]
[1741878215815,0.1219156,82039.0,82038.0,0.1219151]
[1741878216217,0.3424156,82039.0,82038.0,0.1219151]
[1741878216808,0.1219211,82035.0,82034.0,0.2977788]
[1741878217116,0.1219211,82035.0,82034.0,0.419697]
[1741878217314,0.2814582,82039.0,82034.0,0.419697]
[1741878217315,0.2205,82039.0,82035.0,0.0609605]
[1741878217512,0.18083106,82044.0,82043.0,0.1219092]
[1741878217926,0.13126256,82044.0,82043.0,0.1219092]
[1741878218113,0.2253,82056.0,82046.0,0.1219047]
[1741878218315,0.1218992,82050.0,82046.0,0.1219047]
[1741878218513,0.1219008,82049.0,82046.0,0.1219047]
[1741878218717,0.2253,82049.0,82046.0,0.1219047]
[1741878219007,0.21727631,82051.0,82046.0,0.1219047]
[1741878219411,0.12208614,82047.0,82046.0,0.1219047]
[1741878219620,0.12408614,82047.0,82046.0,0.1219047]
[1741878220714,0.0609545,82044.0,82030.0,0.00018284]
[1741878220919,0.0609593,82037.0,82030.0,0.00018284]
[1741878221115,0.121927,82031.0,82030.0,0.00018284]
[1741878221421,0.121927,82031.0,82030.0,0.12211134]
[1741878221612,0.121927,82031.0,82030.0,0.00018284]
[1741878221812,0.1467949,82031.0,82030.0,0.00018284]
[1741878222211,0.1467949,82031.0,82030.0,0.12511134]
[1741878222516,0.14486104,82031.0,82030.0,0.00318284]
[1741878224118,0.14486104,82031.0,82030.0,0.12911134]
[1741878224615,0.14686104,82031.0,82030.0,0.12611134]
[1741878224813,0.14686104,82031.0,82030.0,0.00418284]
[1741878225014,0.14686104,82031.0,82030.0,0.00018284]
[1741878225220,0.14686104,82031.0,82030.0,0.12211134]
[1741878225221,0.02793404,82031.0,82030.0,0.12211134]
[1741878225428,0.00092,82065.0,82046.0,0.1219047]
[1741878225622,0.23370462,82047.0,82046.0,0.1219047]
[1741878225817,0.24523064,82047.0,82046.0,0.1219047]
[1741878226024,0.36713394,82047.0,82046.0,0.1219047]
[1741878227219,0.35560792,82047.0,82046.0,0.1219047]
[1741878227621,0.23370462,82047.0,82046.0,0.1219047]
[1741878228127,0.21998284,82047.0,82046.0,0.1219047]
[1741878228427,0.00018284,82047.0,82046.0,0.13585543]
[1741878228628,0.00118284,82047.0,82046.0,0.13585543]
[1741878229030,0.12308614,82047.0,82046.0,0.13585543]
[1741878229222,0.23578614,82047.0,82046.0,0.13585543]
[1741878229426,0.34438614,82047.0,82046.0,0.13585543]
[1741878229727,0.060936,82069.0,82046.0,0.13585543]
[1741878229929,0.1828289,82062.0,82061.0,0.121881]
[1741878230233,0.1218839,82060.0,82059.0,0.0609412]
[1741878230524,0.1146,82063.0,82060.0,0.0609412]
[1741878230722,0.2364795,82063.0,82062.0,0.121881]
[1741878230922,0.1146,82063.0,82062.0,0.121881]
[1741878231528,0.1146,82063.0,82062.0,0.13559051]
[1741878231728,0.2364795,82063.0,82062.0,0.13559051]
[1741878232432,0.1196,82063.0,82055.0,0.0609452]
[1741878232634,0.182834,82058.0,82057.0,0.1218871]
[1741878233130,0.182834,82058.0,82053.0,0.00018284]
[1741878233131,0.1218929,82054.0,82053.0,0.00018284]
[1741878233628,0.1218929,82054.0,82053.0,0.12207714]
[1741878234024,0.0609456,82056.0,82053.0,0.00018284]
[1741878234332,0.1828371,82056.0,82055.0,0.1218914]
[1741878234727,0.1218929,82054.0,82053.0,0.18302144]
[1741878234923,0.1073,82058.0,82053.0,0.06112924]
[1741878235130,0.1858357,82058.0,82057.0,0.1218884]
[1741878235326,0.1828357,82058.0,82057.0,0.1218884]
[1741878235526,0.0609427,82061.0,82060.0,0.121881]
[1741878235722,0.1218884,82057.0,82056.0,0.1218875]
[1741878235927,0.0609434,82059.0,82053.0,0.00018284]
[1741878235928,0.1218929,82054.0,82053.0,0.00018284]
[1741878236327,0.13313617,82054.0,82053.0,0.12207714]
[1741878237130,0.01124327,82054.0,82053.0,0.12207714]
[1741878237434,0.1248929,82054.0,82053.0,0.22977714]
[1741878237622,0.1248929,82054.0,82053.0,0.00018284]
[1741878238030,0.1268929,82054.0,82053.0,0.12207714]
[1741878238433,0.13815871,82054.0,82053.0,0.12207714]
[1741878238923,0.14959514,82054.0,82053.0,0.12207714]
[1741878239732,0.13815871,82054.0,82053.0,0.12207714]
[1741878239938,0.01626581,82054.0,82053.0,0.12207714]
[1741878240333,0.1218601,82077.0,82058.0,0.0609432]
[1741878240524,0.12205264,82070.0,82069.0,0.1218706]
[1741878241130,0.00018284,82070.0,82069.0,0.1218706]
[1741878241330,0.12205194,82070.0,82069.0,0.2331706]
[1741878241536,0.00018284,82070.0,82068.0,0.1049]
[1741878241736,0.1218706,82069.0,82068.0,0.2267706]
[1741878242037,0.1218706,82069.0,82039.0,0.6095687]
[1741878242038,0.1218839,82062.0,82061.0,0.121881]
[1741878242239,0.1218839,82062.0,82061.0,0.13534792]
[1741878242443,0.1218839,82062.0,82061.0,0.121881]
[1741878242922,0.1218839,82062.0,82054.0,0.0609458]
[1741878242923,0.1218929,82054.0,82038.0,0.0609581]
[1741878243127,0.1218929,82054.0,82053.0,0.12207714]
[1741878243435,0.1357888,82054.0,82053.0,0.00018284]
[1741878244331,0.13692,82060.0,82059.0,0.1218854]
[1741878244533,0.13692,82060.0,82054.0,0.1053]
[1741878244842,0.0609438,82058.0,82054.0,0.1053]
[1741878245035,0.1218899,82056.0,82055.0,0.2292899]
[1741878245230,0.1218899,82056.0,82055.0,0.3345899]
[1741878245430,0.1828279,82063.0,82062.0,0.060939]
[1741878245626,0.0609416,82063.0,82061.0,0.1053]
[1741878245942,0.1218899,82056.0,82055.0,0.2292872]
[1741878246140,0.0609442,82058.0,82055.0,0.1074]
[1741878246343,0.003,82056.0,82055.0,0.2902363]
[1741878248064,0.1828299,82062.0,82061.0,0.1218783]
[1741878248563,0.1218899,82056.0,82055.0,0.3511775]
[1741878248759,0.1248899,82056.0,82055.0,0.3511775]
[1741878248960,0.1248899,82056.0,82055.0,0.2437775]
[1741878249261,0.1218929,82054.0,82053.0,0.23197714]
[1741878250059,0.1218921,82055.0,82054.0,0.0609464]
[1741878250266,0.1248911,82056.0,82055.0,0.1218914]
[1741878250468,0.1218929,82054.0,82053.0,0.00018284]
[1741878251161,0.1218929,82054.0,82053.0,0.12207714]
[1741878251365,0.1218929,82054.0,82053.0,0.00018284]
[1741878252364,0.1351138,82054.0,82053.0,0.00018284]
[1741878252669,0.14855948,82054.0,82053.0,0.00018284]
[1741878253056,0.13733858,82054.0,82053.0,0.00018284]
[1741878253256,0.14876737,82054.0,82053.0,0.00018284]
[1741878253659,0.16004628,82054.0,82053.0,0.00018284]
[1741878253859,0.16004628,82054.0,82053.0,0.12207714]
[1741878254064,0.26774628,82054.0,82053.0,0.00018284]
[1741878254263,0.37444628,82054.0,82053.0,0.00018284]
[1741878254763,0.36316737,82054.0,82053.0,0.00018284]
[1741878254962,0.37447665,82054.0,82053.0,0.00018284]
[1741878257367,0.25258375,82054.0,82017.0,0.4194]
[1741878257572,0.1829121,82022.0,82021.0,0.0609678]
[1741878257865,0.19422138,82022.0,82021.0,0.2245419]
[1741878258065,0.19422138,82022.0,82021.0,0.23852739]
[1741878258066,0.08370827,82022.0,82021.0,0.23852739]
[1741878258467,0.08370827,82022.0,82021.0,0.1026]
[1741878258666,0.1219419,82021.0,82020.0,0.29602391]
[1741878258863,0.35045118,82021.0,82020.0,0.29602391]
[1741878259058,0.23450928,82021.0,82020.0,0.41796731]
[1741878259466,0.35645118,82021.0,82020.0,0.29602391]
[1741878259870,0.49261118,82021.0,82020.0,0.29602391]
[1741878260065,0.61613997,82021.0,82020.0,0.29602391]
[1741878260272,0.61613997,82021.0,82020.0,0.23483281]
[1741878260776,0.1219523,82014.0,81999.0,0.36324316]
[1741878260966,0.1219583,82010.0,82005.0,0.1219647]
[1741878261170,0.26952132,82010.0,81999.0,0.36324316]
[1741878261364,0.26952132,82010.0,82002.0,0.0609844]
[1741878261672,0.29441296,82010.0,82007.0,0.0609806]
[1741878261869,0.28095011,82010.0,82009.0,0.12209636]
[1741878262476,0.29473379,82010.0,82009.0,0.12209636]
[1741878262663,0.28095011,82010.0,82009.0,0.12209636]
[1741878263071,0.14495011,82010.0,82009.0,0.12209636]
[1741878263665,0.02299181,82010.0,82009.0,0.12209636]
[1741878263871,0.14795011,82010.0,82009.0,0.12209636]
[1741878264272,0.14795011,82010.0,82009.0,0.23429636]
[1741878264571,0.00018284,82030.0,82009.0,0.60801666]
[1741878264873,0.00018284,82030.0,82026.0,0.1219345]
[1741878264874,0.12376263,82027.0,82026.0,0.1219345]
[1741878265074,0.12376263,82027.0,82026.0,0.2577745]
[1741878265075,0.00182963,82027.0,82026.0,0.2577745]
[1741878265265,0.00182963,82027.0,82026.0,0.4769745]
[1741878265575,0.12376263,82027.0,82026.0,0.4769745]
[1741878265776,0.12376263,82027.0,82023.0,0.0609691]
[1741878265777,0.1219449,82019.0,82018.0,0.13598284]
[1741878265973,0.1219449,82019.0,82018.0,0.00018284]
[1741878266166,0.13330963,82019.0,82018.0,0.12212924]
[1741878266561,0.11846473,82019.0,82018.0,0.12212924]
[1741878266766,0.2290449,82019.0,82018.0,0.12212924]
[1741878266976,0.23745254,82019.0,82018.0,0.00018284]
[1741878267677,0.11650764,82019.0,82009.0,0.00013666]
[1741878267866,0.1219583,82010.0,82009.0,0.12209416]
[1741878268063,0.1219583,82010.0,82009.0,0.00013666]
[1741878268263,0.13334526,82010.0,82009.0,0.12209636]
[1741878268461,0.01138696,82010.0,82009.0,0.12209636]
[1741878269074,0.0609753,82018.0,82015.0,0.060975]
[1741878269272,0.1219493,82016.0,82015.0,0.060975]
[1741878269580,0.004,82019.0,82018.0,0.1219464]
[1741878270067,0.003,82019.0,82018.0,0.1219464]
[1741878270264,0.003,82019.0,82018.0,0.3387464]
[1741878270667,0.1219445,82020.0,82019.0,0.1219449]
[1741878270977,0.1219445,82020.0,82019.0,0.3387449]
[1741878271177,0.1829075,82025.0,82024.0,0.0609672]
[1741878271472,1.55312,82039.0,82024.0,0.0609672]
[1741878271473,0.0008,82039.0,82024.0,0.0609672]
[1741878271678,0.0008,82039.0,82029.0,0.12193]
[1741878271679,0.1125,82039.0,82029.0,0.12193]
[1741878271873,0.01657941,82037.0,82029.0,0.12193]
[1741878272077,0.01657941,82037.0,82027.0,0.1965657]
[1741878272375,0.12193,82029.0,82028.0,0.1028]
[1741878272572,0.12193,82029.0,82014.0,0.1113]
[1741878272573,0.1219478,82017.0,82015.0,0.1118]
[1741878272878,0.1219478,82017.0,82016.0,0.22493214]
[1741878273277,0.0609677,82026.0,82016.0,0.10298284]
[1741878273468,0.1829046,82026.0,82025.0,0.1219359]
[1741878273668,0.1943706,82026.0,82025.0,0.1219359]
[1741878273868,0.1943706,82026.0,82024.0,0.1028]
[1741878273869,0.1219359,82025.0,82024.0,0.1028]
[1741878274069,0.1334019,82025.0,82024.0,0.1028]
[1741878274282,0.2454019,82025.0,82024.0,0.1028]
[1741878274573,0.3481019,82025.0,82024.0,0.1028]
[1741878274769,0.3481019,82025.0,82024.0,0.2247374]
[1741878275174,0.001,82026.0,82024.0,0.2247374]
[1741878275384,0.001,82026.0,82025.0,0.2296359]
[1741878275783,0.00018284,82030.0,82025.0,0.2153]
[1741878276079,0.00018284,82030.0,82029.0,0.12193]
[1741878276080,0.12211344,82030.0,82029.0,0.12193]
[1741878276384,0.1219345,82027.0,82026.0,0.1219333]
[1741878276568,0.13334605,82027.0,82026.0,0.2296333]
[1741878276770,0.23141155,82027.0,82015.0,0.4194]
[1741878276971,0.1219478,82017.0,82015.0,0.4194]
[1741878277173,0.13332159,82017.0,82011.0,0.1219558]
[1741878277369,0.1219583,82010.0,82002.0,0.1219698]
[1741878277586,0.01137379,82010.0,81995.0,0.1077]
[1741878277883,0.24576304,82009.0,82007.0,0.1219612]
[1741878278071,0.35634895,82009.0,82008.0,0.2296612]
[1741878278268,0.24578455,82009.0,82008.0,0.2296612]
[1741878278769,0.182966,81999.0,81998.0,0.1219688]
[1741878278974,0.0609876,81999.0,81998.0,0.1219688]
[1741878279278,0.0599876,81999.0,81998.0,0.1219688]
[1741878279478,0.07139622,81999.0,81998.0,0.1219688]
[1741878279677,0.08288547,81999.0,81998.0,0.1219688]
[1741878279884,0.02275931,81999.0,81998.0,0.1219688]
[1741878280077,0.14473423,81999.0,81998.0,0.1219688]
[1741878280282,0.02275963,81999.0,81998.0,0.1219688]
[1741878280483,0.14473423,81999.0,81998.0,0.1219688]
[1741878281073,0.02275963,81999.0,81998.0,0.1219688]
[1741878281269,0.02275963,81999.0,81998.0,0.2281688]
[1741878281270,0.01148925,81999.0,81998.0,0.2281688]
[1741878281691,0.01248925,81999.0,81998.0,0.2281688]
[1741878281884,0.001,81999.0,81998.0,0.2281688]
[1741878282272,0.1229746,81999.0,81998.0,0.2281688]
[1741878282580,0.001,81999.0,81998.0,0.2281688]
[1741878285581,0.001,81999.0,81998.0,0.3333688]
[1741878286384,0.1229746,81999.0,81998.0,0.2271688]
[1741878286587,0.13419985,81999.0,81998.0,0.2271688]
[1741878286888,0.35459985,81999.0,81998.0,0.2271688]
[1741878287384,0.12482525,81999.0,81998.0,0.2271688]
[1741878287582,0.01222525,81999.0,81998.0,0.2271688]
[1741878287985,0.001,81999.0,81998.0,0.2271688]
[1741878290177,0.1129,82012.0,82006.0,0.1219642]
[1741878290381,0.1129,82012.0,82007.0,0.2287627]
[1741878290677,0.01112374,82008.0,82007.0,0.2287627]
[1741878290879,0.1129,82012.0,82011.0,0.1219568]
[1741878291082,0.14401452,82013.0,82012.0,0.1219553]
[1741878291687,0.14401452,82013.0,82012.0,0.2287553]
[1741878291891,0.15513063,82013.0,82012.0,0.2287553]
[1741878294281,0.15513063,82013.0,82012.0,0.3350553]
[1741878295487,0.1219143,82040.0,82014.0,0.1219523]
[1741878295689,0.2282227,82034.0,82024.0,0.1219374]
[1741878295991,0.1063,82029.0,82024.0,0.2675374]
[1741878296188,0.2134,82029.0,82024.0,0.4868374]
[1741878296577,0.33921221,82025.0,82024.0,0.4868374]
[1741878296783,0.33921221,82025.0,82024.0,0.2575374]
[1741878297089,0.57516812,82025.0,82024.0,0.3715374]
[1741878297284,0.44187949,82025.0,82024.0,0.3715374]
[1741878297487,0.33477949,82025.0,82024.0,0.48927718]
[1741878297687,0.33677949,82025.0,82024.0,0.48927718]
[1741878297885,0.45871539,82025.0,82024.0,0.38477718]
[1741878298190,0.46998436,82025.0,82024.0,0.38477718]
[1741878298383,0.45858118,82025.0,82024.0,0.38477718]
[1741878298583,0.56568118,82025.0,82024.0,0.38477718]
[1741878298785,0.56568118,82025.0,82024.0,0.27077718]
[1741878299176,0.44374528,82025.0,82024.0,0.27077718]
[1741878299385,0.33664528,82025.0,82024.0,0.48707718]
[1741878299585,0.23054528,82025.0,82024.0,0.48707718]
[1741878300079,0.35248118,82025.0,82024.0,0.48707718]
[1741878300278,0.002,82025.0,82024.0,0.48707718]
[1741878300689,0.1332035,82025.0,82024.0,0.13517718]
[1741878300884,0.1342035,82025.0,82024.0,0.13517718]
[1741878301082,0.2300676,82025.0,82017.0,0.13556]
[1741878301385,0.2300676,82025.0,81884.0,0.90399673]
[1741878301386,0.1219478,82017.0,82007.0,0.01337897]
[1741878301588,0.1219716,82001.0,82000.0,0.21886013]
[1741878301783,0.121988,81990.0,81989.0,0.36324316]
[1741878301984,0.0112676,81990.0,81989.0,0.48523266]
[1741878302185,0.02274246,81990.0,81989.0,0.48523266]
[1741878302381,0.14473046,81990.0,81989.0,0.36324316]
[1741878302579,0.14473046,81990.0,81989.0,0.48523266]
[1741878303495,0.02274246,81990.0,81989.0,0.48523266]
[1741878303700,0.14473046,81990.0,81989.0,0.48523266]
[1741878304398,0.14373046,81990.0,81989.0,0.48523266]
[1741878304593,0.13346286,81990.0,81989.0,0.1219895]
[1741878304897,0.35936286,81990.0,81989.0,0.1219895]
[1741878305091,0.35936286,81990.0,81989.0,0.1229895]
[1741878305092,0.23737486,81990.0,81989.0,0.1229895]
[1741878305595,0.23737486,81990.0,81989.0,0.3457895]
[1741878305998,0.01147486,81990.0,81989.0,0.3457895]
[1741878306193,0.01147486,81990.0,81989.0,0.5013495]
[1741878306690,0.00182985,82010.0,81989.0,0.50132683]
[1741878306885,0.2360112,82009.0,82008.0,0.1219612]
[1741878307086,0.2171,82009.0,82008.0,0.1219612]
[1741878307492,0.2171,82009.0,82008.0,0.3447612]
[1741878308098,0.2181,82009.0,82008.0,0.3447612]
[1741878308695,0.3410597,82009.0,82008.0,0.1219612]
[1741878308895,0.2191,82009.0,82006.0,0.1829433]
[1741878309104,0.2191,82009.0,82008.0,0.1219612]
[1741878309490,0.3410597,82009.0,82008.0,0.1219612]
[1741878309891,0.23787876,82009.0,82000.0,0.00018284]
[1741878310095,0.1219716,82001.0,82000.0,0.18313494]
[1741878310292,0.15448879,82001.0,82000.0,0.00018284]
[1741878310493,0.15448879,82001.0,82000.0,0.12215594]
[1741878310494,0.14080959,82001.0,82000.0,0.12215594]
[1741878310893,0.23863799,82001.0,82000.0,0.12215594]
[1741878311293,0.36060959,82001.0,82000.0,0.12215594]
[1741878311607,0.001,82009.0,82008.0,0.1219612]
[1741878311901,0.1219545,82013.0,82009.0,0.1219597]
[1741878312104,0.12378815,82010.0,82009.0,0.1219597]
[1741878314194,0.1219716,82001.0,82000.0,0.12215594]
[1741878314394,0.14085917,82001.0,82000.0,0.12215594]
[1741878314790,0.14085917,82001.0,82000.0,0.00018284]
[1741878314997,0.2197,82002.0,81980.0,0.1356]
[1741878315194,0.1220014,81983.0,81982.0,0.2880867]
[1741878315394,0.0609955,81988.0,81987.0,0.1219925]
[1741878315801,0.1143,81989.0,81974.0,0.1356]
[1741878316003,0.1220073,81977.0,81976.0,0.25017635]
[1741878316298,0.1220073,81977.0,81976.0,0.07471346]
[1741878316495,0.1220073,81977.0,81976.0,0.17981346]
[1741878316896,0.13373608,81977.0,81976.0,0.17981346]
[1741878317093,0.01172878,81977.0,81976.0,0.17981346]
[1741878317295,0.1143,81978.0,81977.0,0.1220073]
[1741878317496,0.3253036,81978.0,81957.0,0.00064]
[1741878317806,0.1830211,81976.0,81975.0,0.1220088]
[1741878317995,0.1472227,81976.0,81975.0,0.1220088]
[1741878318190,0.2692315,81976.0,81975.0,0.1220088]
[1741878318494,0.1220178,81970.0,81969.0,0.1144]
[1741878318695,0.133635,81970.0,81969.0,0.1144]
[1741878319103,0.133635,81970.0,81969.0,0.2364193]
[1741878319402,0.14514832,81970.0,81969.0,0.2364193]
[1741878319606,0.02313052,81970.0,81969.0,0.2364193]
[1741878319804,0.01151332,81970.0,81969.0,0.2364193]
[1741878320505,0.01369926,81985.0,81969.0,0.27044]
[1741878320707,0.19444286,81984.0,81983.0,0.1219984]
[1741878321003,0.30584286,81984.0,81983.0,0.1219984]
[1741878321198,0.30584286,81984.0,81983.0,0.13556835]
[1741878321408,0.30584286,81984.0,81983.0,0.01356995]
[1741878321907,0.30584286,81984.0,81975.0,0.1154]
[1741878321908,0.18384186,81984.0,81975.0,0.1154]
[1741878322109,0.1220088,81976.0,81975.0,0.2984063]
[1741878322308,0.13345206,81976.0,81975.0,0.2984063]
[1741878322500,0.01144326,81976.0,81975.0,0.1764032]
[1741878322802,0.1114,81978.0,81977.0,0.1220073]
[1741878323002,0.1114,81978.0,81975.0,0.1764032]
[1741878323003,0.005,81984.0,81975.0,0.1154]
[1741878323203,0.01,81984.0,81983.0,0.1219984]
[1741878323396,0.17562131,82002.0,82001.0,0.1219716]
[1741878323596,0.25866847,82045.0,82001.0,0.55684]
[1741878323805,0.1096,82044.0,82043.0,0.1219092]
[1741878324108,0.1096,82044.0,82041.0,0.0609555]
[1741878324307,0.1096,82044.0,82031.0,0.13764]
[1741878324308,0.11272895,82059.0,82032.0,0.13784]
[1741878324499,0.00182895,82059.0,82044.0,0.0609534]
[1741878324698,0.1219047,82047.0,82046.0,0.1219006]
[1741878325205,0.1219166,82038.0,82019.0,0.0609723]
[1741878325405,0.1219166,82038.0,82023.0,0.0609693]
[1741878325594,0.1219166,82038.0,82025.0,0.2610558]
[1741878325798,0.15,82038.0,82001.0,0.0609852]
[1741878326004,0.0609746,82017.0,82016.0,0.1219477]
[1741878326209,0.1392,82028.0,82016.0,0.01319162]
[1741878326504,0.1829094,82026.0,82025.0,0.1219345]
[1741878326807,0.1829094,82026.0,82001.0,0.0609853]
[1741878326808,0.1219359,82025.0,82024.0,0.1131]
[1741878327105,0.2282359,82025.0,82024.0,0.1131]
[1741878327305,0.1219538,82013.0,82010.0,0.1083]
[1741878327504,0.2282553,82012.0,82005.0,0.01308922]
[1741878327808,0.1219583,82010.0,82009.0,0.12711809]
[1741878328209,0.1394,82019.0,82009.0,0.00515839]
[1741878328404,0.2892304,82018.0,82017.0,0.1219464]
[1741878329304,0.1219493,82016.0,82013.0,0.1219536]
[1741878329509,0.1219583,82010.0,82009.0,0.00015839]
[1741878329709,0.1219583,82010.0,82009.0,0.12211809]
[1741878330204,0.1219583,82010.0,82009.0,0.00015839]
[1741878330511,0.1219731,82000.0,81996.0,0.00923802]
[1741878331009,0.1219731,82000.0,81985.0,0.4358918]
[1741878331396,0.149,82000.0,81955.0,0.00064]
[1741878331597,0.23369853,81965.0,81938.0,1.60123709]
[1741878331795,0.25979219,81964.0,81963.0,0.1220282]
[1741878331993,0.25979219,81964.0,81941.0,0.07571191]
[1741878332206,0.25979219,81964.0,81952.0,0.0610222]
[1741878332207,0.0610163,81960.0,81952.0,0.0610222]
[1741878332401,0.1220386,81958.0,81955.0,0.0610195]
[1741878332595,0.0610163,81960.0,81939.0,0.1673317]
[1741878332596,0.1220624,81940.0,81939.0,0.1673317]
[1741878332795,0.1220624,81940.0,81939.0,0.0620317]